Cogmind - Beta 13 X1 @@@ ROGUE MODE // 2023.08.18 @ 21:47:28 Player: f3-rnm Result: Escaped! Performance ------------- Evolutions (9) 4500 Regions Visited (22) 4400 Robots Destroyed (175) 875 Value Destroyed (4851) 4851 Prototype IDs (31) 620 Alien Tech Used (0) 0 Bonus (5348) 5348 TOTAL SCORE: 20594 Bonus ------- High Alert Combat Kills 294 Follower Combat Kills 2043 Network Hubs Disabled 200 Aligned with FarCom 300 Built Enhanced Grunts 300 Win 3000 Friendly Fire -789 Cogmind --------- Core Integrity 893/1600 Matter 258/300 Energy 98/100 System Corruption 2% Temperature Cool (0) Movement Core (50) Location To Epsilon Eridani Parts ------- > --- POWER (2) -------- (None) > --- PROPULSION (9) --- Advanced Heavy Siege Treads > --- UTILITY (12) ----- Advanced Visual Processing Unit Enhanced Optical Array Improved Hacking Suite Improved Hacking Suite Improved Hacking Suite > --- WEAPON (2) ------- (None) > --- INVENTORY (5) ---- Advanced Heavy Siege Treads Stasis Canceller Improved Reaction Control System Enhanced Nova Cannon Peak State ------------ > --- POWER ------------ Light Angular Momentum Engine > --- PROPULSION ------- Cesium-ion Thruster Improved VTOL Module Improved VTOL Module Improved Cesium-ion Thruster Impulse Thruster Q-thruster > --- UTILITY ---------- Small Storage Unit Enhanced Optical Array ECM Suite Medium Regenerative Plating EM Disruption Field Improved Hacking Suite Improved Hacking Suite Improved Hacking Suite Improved Hacking Suite Improved Hacking Suite Improved System Shield > --- WEAPON ----------- Field Lobotomy Kit > --- INVENTORY -------- Stasis Canceller Improved Reaction Control System Hardened Light Armor Plating Improved System Shield KE Penetrator Heavy Rocket Launcher [Rating: 97] Favorites ----------- Power Cooled Ion Engine Engine Cooled Ion Engine Power Core Light Nuclear Core Reactor Micro Antimatter Reactor Propulsion Improved VTOL Module Treads Armored Treads Flight Unit Improved VTOL Module Utility Improved Hacking Suite Device Improved Heat Sink Storage Large Storage Unit Processor Enhanced Optical Array Hackware Improved Hacking Suite Protection Hardened Medium Armor Plating Weapon Flak Cannon Energy Gun Backup Laser III Energy Cannon Advanced Beam Cannon Ballistic Gun KE Penetrator Ballistic Cannon Flak Cannon Launcher Heavy Rocket Launcher Special Weapon Improved Remote Datajack Impact Weapon Power Maul Special Melee Weapon Datajack Build | -11 -10 -10 -9 -9 -9 -8 -8 -7 -6 -6 -6 -5 -5 -5 -4 -4 -4 -4 -4 -3 -2 -1 ------- Run | Jun Mat Min Mat Min Exi Min Mat Fac Fac Was Fac Fac Was Fac Fac Ext Cet Arc Hub Res Res Acc Slots Evolved 18 | . . . 2 . . . 2 2 2 . . 2 . . 2 . . . . 2 2 2 Power 1 | . . . . . . . . . . . . 1 . . . . . . . . . . Propulsion 7 | . . . 1 . . . 1 1 . . . 1 . . . . . . . . 1 2 Utility 10 | . . . 1 . . . 1 1 2 . . . . . 2 . . . . 2 1 . Weapon . | . . . . . . . . . . . . . . . . . . . . . . . Parts Attached 158 | 6 8 . 28 . . . 20 15 7 1 6 1 . 8 6 14 5 8 1 11 2 11 Power 25 | 1 . . 4 . . . 2 . 3 . . . . 4 . 4 1 2 . 1 1 2 Engine 10 | 1 . . 4 . . . . . . . . . . . . 1 . 1 . 1 . 2 Core 13 | . . . . . . . 2 . 3 . . . . 4 . 2 1 1 . . . . Reactor 2 | . . . . . . . . . . . . . . . . 1 . . . . 1 . Propulsion 40 | 2 2 . 9 . . . 9 6 1 . 1 1 . 1 . 2 1 . . 2 . 3 Treads 19 | 2 2 . 9 . . . 5 . . . . . . . . . . . . . . 1 Leg . | . . . . . . . . . . . . . . . . . . . . . . . Wheel . | . . . . . . . . . . . . . . . . . . . . . . . Hover . | . . . . . . . . . . . . . . . . . . . . . . . Flight 21 | . . . . . . . 4 6 1 . 1 1 . 1 . 2 1 . . 2 . 2 Utility 52 | 1 2 . 6 . . . 3 8 2 1 4 . . 3 6 4 . 4 . 5 1 2 Device 14 | . 1 . 2 . . . . . . 1 . . . . 6 2 . 1 . 1 . . Storage 3 | 1 1 . . . . . . 1 . . . . . . . . . . . . . . Processor 4 | . . . . . . . . . 1 . 2 . . . . . . . . . . 1 Hackware 13 | . . . . . . . . 3 1 . 2 . . . . . . 3 . 3 . 1 Protection 18 | . . . 4 . . . 3 4 . . . . . 3 . 2 . . . 1 1 . Artifact . | . . . . . . . . . . . . . . . . . . . . . . . Weapon 41 | 2 4 . 9 . . . 6 1 1 . 1 . . . . 4 3 2 1 3 . 4 Energy Gun 1 | . . . . . . . . . . . . . . . . . . . . . . 1 Energy Cannon 6 | . 2 . 1 . . . 1 . . . . . . . . . . . . . . 2 Ballistic Gun 6 | 2 . . 1 . . . . . . . . . . . . . . 1 . 1 . 1 Ballistic Cannon 12 | . 2 . 6 . . . 2 1 1 . . . . . . . . . . . . . Launcher 4 | . . . . . . . . . . . . . . . . 2 1 . . 1 . . Special Weapon 4 | . . . . . . . . . . . . . . . . 2 1 . . 1 . . Impact Weapon 7 | . . . . . . . 3 . . . 1 . . . . . 1 1 1 . . . Slashing Weapon . | . . . . . . . . . . . . . . . . . . . . . . . Piercing Weapon . | . . . . . . . . . . . . . . . . . . . . . . . Special Melee Weapon 1 | . . . 1 . . . . . . . . . . . . . . . . . . . Unidentified Prototypes 8 | . 1 . 2 . . . 2 1 . 1 . . . . . 1 . . . . . . Parts Lost 51 | . . 1 6 . . . 5 1 . . 2 . . 2 . 3 4 1 1 4 4 17 Power 10 | . . . 1 . . . 1 . . . . . . 2 . 1 1 1 . 1 . 2 Propulsion 17 | . . 1 2 . . . 3 . . . . . . . . 1 1 . . 1 3 5 Utility 18 | . . . 2 . . . . 1 . . 2 . . . . 1 2 . 1 1 1 7 Weapon 6 | . . . 1 . . . 1 . . . . . . . . . . . . 1 . 3 Highest Loss Streak 15 | . . 1 3 . . . 2 1 . . 2 . . 1 . 2 4 1 1 3 4 15 To Critical Strikes . | . . . . . . . . . . . . . . . . . . . . . . . Average Slot Usage (%) 92 | . 99 98 94 100 100 100 88 98 99 93 92 99 100 96 99 93 83 88 94 81 73 53 Engine 6 | . 14 14 10 11 11 11 6 . . . . 4 5 1 5 3 . . 5 2 . 1 Core 2 | . . . . . . . 2 7 6 6 6 5 5 6 5 3 4 3 . . . . Treads 17 | . 28 26 29 33 33 33 32 . . . . . . . . . . . . . . . Flight 13 | . . . . . . . . 37 33 33 32 34 35 35 31 31 30 31 31 27 23 10 Device 7 | . 13 14 10 11 11 11 9 . . . . . . . 9 13 5 5 10 8 8 6 Storage 8 | . 14 14 11 11 11 11 9 7 6 6 6 5 5 5 5 5 5 5 5 4 4 . Processor 3 | . . . . . . . . . 5 6 12 11 11 11 10 10 10 9 5 4 4 6 Hackware 7 | . . . . . . . . 16 19 20 19 17 17 17 15 11 10 15 21 24 26 24 Protection 7 | . . . 9 11 11 11 10 11 13 6 6 5 5 4 5 5 5 5 5 4 5 2 Energy Cannon 2 | . 7 28 6 . . . 6 . . . . . . . . . . . . . . . Ballistic Cannon 9 | . 15 . 15 22 22 22 11 7 6 6 . . . . . . . . . . . . Impact Weapon 1 | . . . . . . . . 7 6 6 6 5 5 5 5 1 3 1 . 1 . . Naked Turns . | . . . . . . . . . . . . . . . . . . . . . . . Heaviest Build 57 | 12 34 34 49 49 49 49 57 49 24 24 21 22 22 25 31 39 39 33 33 33 36 16 Greatest Support 86 | 40 40 40 66 60 60 60 86 66 25 25 25 31 31 31 31 33 33 33 33 36 36 18 Greatest Overweight (x) 3 | 3 . 1 1 . . . . 1 1 . . . . . . 1 1 . . 1 . 1 Average Overweight (x) . | . . . . . . . . . . . . . . . . . . . . . . . Largest Inventory Capacity 15 | 8 15 15 15 15 15 15 15 15 8 8 8 8 8 8 8 8 8 8 8 8 8 5 Average Capacity 11 | 7 14 15 15 15 15 15 15 8 8 8 8 8 8 8 8 8 8 8 8 8 7 5 Most Carried 15 | 5 15 15 15 15 15 15 15 15 8 8 8 7 7 8 8 8 8 8 8 8 8 5 Average Carried 11 | 1 10 15 14 15 15 15 14 7 7 8 7 6 6 7 7 7 6 7 8 6 6 3 Final Capacity 15 | 8 15 15 15 15 15 15 15 8 8 8 8 8 8 8 8 8 8 8 8 8 5 5 Final Carried 15 | 2 15 15 15 15 15 15 15 8 8 8 7 6 7 8 8 8 7 8 8 6 5 5 Class Distribution -------------------- 50% | Mutant 29% | Hacker-Sprinter 6% | Commander-Sprinter 5% | Wizard-Sprinter 5% | Scavenger-Mutant Dominant Class ---------------- Mutant | -10/Materials Mutant | -10/Mines Mutant | -9/Materials Mutant | -9/Mines Mutant | -9/Exiles Mutant | -8/Mines Mutant | -8/Materials Hacker-Sprinter | -7/Factory Hacker-Sprinter | -6/Factory Hacker-Sprinter | -6/Waste Hacker-Sprinter | -6/Factory Hacker-Sprinter | -5/Factory Hacker-Sprinter | -5/Waste Hacker-Sprinter | -5/Factory Hacker-Sprinter | -4/Factory Hacker-Sprinter | -4/Extension Commander-Sprinter | -4/Cetus Hacker-Sprinter | -4/Archives Hacker-Sprinter | -4/Hub_04(d) Wizard-Sprinter | -3/Research Wizard-Sprinter | -2/Research Wizard-Sprinter | -1/Access Resources | -11 -10 -10 -9 -9 -9 -8 -8 -7 -6 -6 -6 -5 -5 -5 -4 -4 -4 -4 -4 -3 -2 -1 ----------- Run | Jun Mat Min Mat Min Exi Min Mat Fac Fac Was Fac Fac Was Fac Fac Ext Cet Arc Hub Res Res Acc Matter Collected 4525 | 131 410 33 882 42 . 307 1060 51 19 . 122 . . 209 . 664 115 342 . . . 138 Remotely . | . . . . . . . . . . . . . . . . . . . . . . . Salvage Created 5065 | . 409 159 1683 . . 340 1383 74 18 . 122 . . 209 . 19 70 420 . 20 . 139 Parts 306 | . 28 12 116 . . 13 75 1 . . 1 . . 4 . 2 3 32 . 4 . 15 Haulers Intercepted 13 | . 2 . 5 . . . 6 . . . . . . . . . . . . . . . Recyclers Shooed 3 | . 1 . . . . 1 1 . . . . . . . . . . . . . . . Parts Field Recycled . | . . . . . . . . . . . . . . . . . . . . . . . Retrieved Matter . | . . . . . . . . . . . . . . . . . . . . . . . Parts Self-Destructed . | . . . . . . . . . . . . . . . . . . . . . . . Prevented . | . . . . . . . . . . . . . . . . . . . . . . . Kills | -11 -10 -10 -9 -9 -9 -8 -8 -7 -6 -6 -6 -5 -5 -5 -4 -4 -4 -4 -4 -3 -2 -1 ------- Run | Jun Mat Min Mat Min Exi Min Mat Fac Fac Was Fac Fac Was Fac Fac Ext Cet Arc Hub Res Res Acc Combat Hostiles Destroyed 105 | . 10 7 39 . . 11 31 3 . . 1 . . . . . . 1 . . . 2 Melee 1 | . . . . . . . 1 . . . . . . . . . . . . . . . Guns 1 | . 1 . . . . . . . . . . . . . . . . . . . . . Cannons 99 | . 9 7 39 . . 11 28 3 . . . . . . . . . . . . . 2 AOE 1 | . . . . . . . 1 . . . . . . . . . . . . . . . Classes Destroyed 16 | . 5 . 6 . . 1 3 1 . . . . . . . . . . . . . . Worker 15 | . 2 . 3 . . 1 3 . . . 1 . . 3 . . . . . . . 2 Builder 4 | . . . 1 . . . 1 . 1 . . . . . . 1 . . . . . . Tunneler 7 | . . . 3 . . . . . . . 1 . . 2 . . . . . 1 . . Hauler 13 | . 2 . 5 . . . 6 . . . . . . . . . . . . . . . Recycler 3 | . . . . . . . 2 . . . . . . 1 . . . . . . . . Mechanic 1 | . . . . . . . 1 . . . . . . . . . . . . . . . Operator 17 | . 1 . 4 . . . 1 . . . 1 . . . . 1 . 9 . . . . Watcher 7 | . . . 4 . . . 2 . . . . . . . . . . . . . . 1 Swarmer 20 | . 3 5 3 . . . 7 . . . . . . . . . . . . . . 2 Grunt 61 | . 7 2 24 . . 11 15 2 . . . . . . . . . . . . . . Brawler 1 | . . . 1 . . . . . . . . . . . . . . . . . . . Duelist 1 | . . . . . . 1 . . . . . . . . . . . . . . . . Protector 1 | . . . 1 . . . . . . . . . . . . . . . . . . . Sentry 18 | . . . 10 . . . 8 . . . . . . . . . . . . . . . Hunter 3 | . . . . . . . 1 . . . 1 . . . . . . 1 . . . . Programmer 1 | . . . . . . . . 1 . . . . . . . . . . . . . . Savage 2 | . . . . . . . . . . . . . . . . . 1 1 . . . . Best Kill Streak 6 | . 6 2 6 . . 3 4 2 1 . 1 . . 4 . 1 . 4 . 1 . 2 Combat Bots Only 5 | . 5 2 5 . . 3 4 2 . . 1 . . . . . . 1 . . . 2 Max Kills in Single Turn 2 | . 2 1 2 . . 1 2 1 1 . 1 . . 1 . 1 1 1 . 1 . 1 Gunslinging . | . . . . . . . . . . . . . . . . . . . . . . . Exploded 1 | . . . . . . . 1 . . . . . . . . . . . . . . . Melee 1 | . . . . . . . 1 . . . . . . . . . . . . . . . Uniques/NPCs Destroyed . | . . . . . . . . . . . . . . . . . . . . . . . Combat | -11 -10 -10 -9 -9 -9 -8 -8 -7 -6 -6 -6 -5 -5 -5 -4 -4 -4 -4 -4 -3 -2 -1 -------- Run | Jun Mat Min Mat Min Exi Min Mat Fac Fac Was Fac Fac Was Fac Fac Ext Cet Arc Hub Res Res Acc Damage Taken 9108 | . 396 143 1681 . . 491 1351 285 242 . 341 . . 48 20 446 473 83 44 593 564 1907 Core 1820 | . 41 34 203 . . 19 175 . 22 . 107 . . . . 85 135 21 . 137 134 707 Absorbed by Shields 73 | . . . . . . . . . . . . . . . . 24 49 . . . . . Redirected to Shielding 15 | . . . . . . . . 15 . . . . . . . . . . . . . . Regen/Repaired (Parts) 581 | . . . 123 . . . . . 42 . 152 . . 119 . 1 . 126 . 8 10 . Core Remaining (%) 79 | 100 . 70 . . . 44 68 100 . . 84 . . 100 . . . . 79 89 90 55 Volleys Fired 448 | . 38 9 106 . . 25 103 19 3 . . . . . . 49 6 63 . 5 . 22 Largest 2 | . 2 2 2 . . 2 2 1 1 . . . . . . 1 1 1 . 1 . 2 Hottest 153 | . 136 136 136 . . 88 112 44 39 . . . . . . 39 39 33 . 39 . 153 Shots Fired 709 | . 76 18 209 . . 50 185 19 3 . . . . . . 49 6 63 . 5 . 26 Gun 104 | . 18 . 3 . . . . . . . . . . . . . . 63 . 2 . 18 Cannon 547 | . 58 18 206 . . 50 185 19 3 . . . . . . . . . . . . 8 Launcher 10 | . . . . . . . . . . . . . . . . 4 5 . . 1 . . Special 48 | . . . . . . . . . . . . . . . . 45 1 . . 2 . . Kinetic 488 | . 72 . 137 . . 50 125 19 3 . . . . . . . . 63 . 2 . 17 Thermal 163 | . 4 18 72 . . . 60 . . . . . . . . . . . . . . 9 Explosive 10 | . . . . . . . . . . . . . . . . 4 5 . . 1 . . Electromagnetic . | . . . . . . . . . . . . . . . . . . . . . . . Robot Hit Streak 20 | . 6 8 15 . . 9 9 7 4 . . . . . . 14 18 20 . 1 . 3 Robot Miss Streak 10 | . 3 2 10 . . 7 9 10 . . . . . . . 2 . 4 . 1 . 4 Penetration Max 1 | . . . . . . . . . . . . . . . . . . 1 . . . 1 Secondary Targets . | . . . . . . . . . . . . . . . . . . . . . . . Shots Hit Robots 508 | . 39 9 153 . . 45 130 13 7 . 4 . . 5 . 43 6 43 . 1 . 10 Core Hits 445 | . 21 8 137 . . 71 145 12 . . . . . 2 . 4 17 20 . 1 . 7 Critical Kills 3 | . . . . . . . 1 . . . . . . . . . . 1 . . . 1 Critical Parts Destroyed 4 | . . . . . . . . . . . 1 . . 1 . 1 . 1 . . . . Critical Strikes 8 | . 1 . . . . . 1 . . . 1 . . 1 . 1 . 2 . . . 1 Meltdown 1 | . . . . . . . 1 . . . . . . . . . . . . . . . Destroy 1 | . . . . . . . . . . . . . . . . . . . . . . 1 Blast 1 | . 1 . . . . . . . . . . . . . . . . . . . . . Smash 5 | . . . . . . . . . . . 1 . . 1 . 1 . 2 . . . . Melee Attacks 126 | . . . . . . . 10 28 27 . 17 9 . 14 3 4 2 6 . 6 . . Impact 126 | . . . . . . . 10 28 27 . 17 9 . 14 3 4 2 6 . 6 . . Slashing . | . . . . . . . . . . . . . . . . . . . . . . . Piercing . | . . . . . . . . . . . . . . . . . . . . . . . Sneak Attacks 11 | . . . . . . . 1 . 1 . 2 . . 5 . . . 2 . . . . Combat Hostiles . | . . . . . . . . . . . . . . . . . . . . . . . Follow-up Attacks . | . . . . . . . . . . . . . . . . . . . . . . . Damage Inflicted 12041 | . 684 185 2957 2 . 1068 2878 298 232 . 280 . . 501 . 376 797 1333 . 19 . 431 Guns 1364 | . 91 . 15 . . . . . . . . . . . . . . 997 . 19 . 242 Cannons 7820 | . 593 185 2910 . . 1062 2539 298 63 . . . . . . . . . . . . 170 Explosions 1305 | . . . . . . . 266 . . . . . . . . 310 729 . . . . . Melee 1450 | . . . . . . . 30 . 169 . 280 . . 501 . 66 68 336 . . . . Ramming 102 | . . . 32 2 . 6 43 . . . . . . . . . . . . . . 19 Kinetic 7006 | . 604 . 1896 . . 1062 1851 298 63 . . . . . . . . 997 . 19 . 216 Thermal 2444 | . 80 185 1029 . . . 954 . . . . . . . . . . . . . . 196 Explosive 1039 | . . . . . . . . . . . . . . . . 310 729 . . . . . Electromagnetic . | . . . . . . . . . . . . . . . . . . . . . . . Impact 1450 | . . . . . . . 30 . 169 . 280 . . 501 . 66 68 336 . . . . Slashing . | . . . . . . . . . . . . . . . . . . . . . . . Piercing . | . . . . . . . . . . . . . . . . . . . . . . . Highest Corruption 17 | . . . . . . . 2 . . 9 17 . . . . . . . 5 12 . 2 Average Corruption 4 | . . . . . . . 2 . . 9 9 . . . . . . . 2 9 . 1 Corruption Purged . | . . . . . . . . . . . . . . . . . . . . . . . Corruption Blocked . | . . . . . . . . . . . . . . . . . . . . . . . Effects 72 | . . . . . . . 28 . . . 32 . . . . . . . . 12 . . Message Errors 25 | . . . . . . . 8 . . . 12 . . . . . . . . 5 . . Matter Fused 16 | . . . . . . . 9 . . . 7 . . . . . . . . . . . Heat Flow Errors 7 | . . . . . . . 1 . . . 2 . . . . . . . . 4 . . Energy Discharges 8 | . . . . . . . 4 . . . 4 . . . . . . . . . . . Parts Rejected 1 | . . . . . . . . . . . . . . . . . . . . 1 . . Data Loss (minor) 6 | . . . . . . . 1 . . . 3 . . . . . . . . 2 . . Data Loss (major) 6 | . . . . . . . 3 . . . 3 . . . . . . . . . . . Misfires 2 | . . . . . . . 2 . . . . . . . . . . . . . . . Misdirections 1 | . . . . . . . . . . . 1 . . . . . . . . . . . Overload Shots . | . . . . . . . . . . . . . . . . . . . . . . . Overflow Damage 861 | . 10 . 1 . . . 75 . 71 . 195 . . 281 . 66 . 162 . . . . Projectiles 11 | . 10 . 1 . . . . . . . . . . . . . . . . . . . Explosions 75 | . . . . . . . 75 . . . . . . . . . . . . . . . Melee 775 | . . . . . . . . . 71 . 195 . . 281 . 66 . 162 . . . . Knockbacks 138 | . 8 . 54 . . 21 45 3 . . 2 . . 3 . 1 . 1 . . . . Impact 7 | . . . 1 . . . . . . . 2 . . 2 . 1 . 1 . . . . Kinetic 126 | . 8 . 51 . . 19 45 3 . . . . . . . . . . . . . . Secondary 5 | . . . 2 . . 2 . . . . . . . 1 . . . . . . . . Self-Inflicted Damage 313 | . . . . . . . 212 . . . . . . . . 42 51 . . . . 8 Shots 4 | . . . . . . . 2 . . . . . . . . 1 1 . . . . . Rammed 22 | . . . 3 2 . 2 8 . . . . . . . . . . . . . . 7 Targets Rammed 24 | . . . 4 2 . 2 9 . . . . . . . . . . . . . . 7 Kicked . | . . . . . . . . . . . . . . . . . . . . . . . Crushed 2 | . . . 1 . . . 1 . . . . . . . . . . . . . . . Highest Temperature 407 | . 150 240 407 . . 215 264 184 85 4 240 125 197 154 304 257 24 62 20 250 177 87 Average Temperature 52 | . 36 95 93 . . 75 21 45 18 2 14 36 130 49 100 54 7 12 8 54 85 39 Received Heat Transfer 2020 | . 156 15 696 . . 324 459 81 30 . . . . 9 . 81 67 . . 21 27 54 Effects 7 | . . . 7 . . . . . . . . . . . . . . . . . . . Shutdowns 2 | . . . 2 . . . . . . . . . . . . . . . . . . . Energy Bleed 1 | . . . 1 . . . . . . . . . . . . . . . . . . . Interference 4 | . . . 4 . . . . . . . . . . . . . . . . . . . Siege Activations . | . . . . . . . . . . . . . . . . . . . . . . . Robots Corrupted . | . . . . . . . . . . . . . . . . . . . . . . . Combat Hostiles . | . . . . . . . . . . . . . . . . . . . . . . . Parts Fried 18 | . . . . . . . . . 3 . 7 . . 4 . 2 . 2 . . . . Impact Corruptions 27 | . . . . . . . . . 4 . 7 . . 8 . 5 . 3 . . . . Robots Melted 1 | . . . . . . . 1 . . . . . . . . . . . . . . . Combat Hostiles 1 | . . . . . . . 1 . . . . . . . . . . . . . . . Parts Melted 9 | . 1 1 3 . . . 3 . . . . . . . . . . . . . . 1 Heat Transferred 3776 | . 148 333 1739 . . . 1371 . . . . . . . . . . . . . . 185 Parts Sabotaged . | . . . . . . . . . . . . . . . . . . . . . . . Parts Stolen . | . . . . . . . . . . . . . . . . . . . . . . . Parts Stripped . | . . . . . . . . . . . . . . . . . . . . . . . Power Chain Reactions . | . . . . . . . . . . . . . . . . . . . . . . . Missiles Intercepted . | . . . . . . . . . . . . . . . . . . . . . . . Alert | -11 -10 -10 -9 -9 -9 -8 -8 -7 -6 -6 -6 -5 -5 -5 -4 -4 -4 -4 -4 -3 -2 -1 ------- Run | Jun Mat Min Mat Min Exi Min Mat Fac Fac Was Fac Fac Was Fac Fac Ext Cet Arc Hub Res Res Acc Peak Influence 941 | . 332 266 777 168 . 185 455 543 359 70 222 44 45 220 80 941 763 657 264 405 350 406 Initial 526 | . . 76 103 168 . . 13 206 205 55 49 14 15 31 31 39 526 305 173 132 191 209 Average 260 | . 159 164 408 94 . 52 278 375 248 60 47 33 31 104 46 435 650 519 190 206 221 261 Maximum Alert Level 3 | . 1 1 3 . . . 2 2 1 . 1 . . 1 . 3 3 2 1 2 1 2 Low Security (%) 44 | 100 80 61 11 100 . 100 30 . 3 100 97 100 100 89 100 24 . . 70 58 55 7 Level 1 28 | . 19 38 32 . . . 37 68 96 . 2 . . 10 . 37 . 1 29 40 44 90 Level 2 23 | . . . 53 . . . 31 31 . . . . . . . 9 82 98 . 1 . 2 Level 3 2 | . . . 2 . . . . . . . . . . . . 28 17 . . . . . Level 4 . | . . . . . . . . . . . . . . . . . . . . . . . Level 5 . | . . . . . . . . . . . . . . . . . . . . . . . High Security . | . . . . . . . . . . . . . . . . . . . . . . . Max Security . | . . . . . . . . . . . . . . . . . . . . . . . Squads Dispatched 30 | . 1 . 5 . . . 3 4 1 . 2 . . . 3 3 . . 2 3 . 3 Investigation 17 | . . . 1 . . . 2 3 1 . 2 . . . 3 . . . 2 2 . 1 Extermination 2 | . . . . . . . . 1 . . . . . . . . . . . . . 1 Reinforcement 9 | . 1 . 3 . . . 1 . . . . . . . . 2 . . . 1 . 1 Assault 2 | . . . 1 . . . . . . . . . . . . 1 . . . . . . Garrison . | . . . . . . . . . . . . . . . . . . . . . . . Intercept . | . . . . . . . . . . . . . . . . . . . . . . . Searches Triggered . | . . . . . . . . . . . . . . . . . . . . . . . Construction Impeded 2 | . . . . . . . . . . . . . . . . 2 . . . . . . Haulers Reinforced . | . . . . . . . . . . . . . . . . . . . . . . . Active Scanning Responses . | . . . . . . . . . . . . . . . . . . . . . . . Cargo Convoy Interrupts . | . . . . . . . . . . . . . . . . . . . . . . . Stealth | -11 -10 -10 -9 -9 -9 -8 -8 -7 -6 -6 -6 -5 -5 -5 -4 -4 -4 -4 -4 -3 -2 -1 --------- Run | Jun Mat Min Mat Min Exi Min Mat Fac Fac Was Fac Fac Was Fac Fac Ext Cet Arc Hub Res Res Acc Distress Signals 21 | . 2 . 5 . . . 4 2 . . 1 . . . . . 1 . . 2 2 2 Communications Jammed . | . . . . . . . . . . . . . . . . . . . . . . . Distress Signals . | . . . . . . . . . . . . . . . . . . . . . . . Times Spotted 379 | . 21 9 60 . . 17 44 20 7 5 11 . 6 11 6 39 5 30 9 25 24 30 Peak Tracking Total 22 | . 5 3 7 . . 3 4 6 5 5 7 . 6 3 6 5 5 3 9 14 22 8 Tactical Retreats 33 | . . 1 2 . . 1 3 5 1 . 2 . . 2 . 1 . . . 5 2 8 Traps | -11 -10 -10 -9 -9 -9 -8 -8 -7 -6 -6 -6 -5 -5 -5 -4 -4 -4 -4 -4 -3 -2 -1 ------- Run | Jun Mat Min Mat Min Exi Min Mat Fac Fac Was Fac Fac Was Fac Fac Ext Cet Arc Hub Res Res Acc Traps Triggered 20 | . 1 . 2 . . . 2 2 3 . . 1 . 1 1 4 . . 1 2 . . Indirectly . | . . . . . . . . . . . . . . . . . . . . . . . Trap Hack Attempts 1 | . . . 1 . . . . . . . . . . . . . . . . . . . Triggered . | . . . . . . . . . . . . . . . . . . . . . . . Disarmed 1 | . . . 1 . . . . . . . . . . . . . . . . . . . Reprogrammed . | . . . . . . . . . . . . . . . . . . . . . . . Reused . | . . . . . . . . . . . . . . . . . . . . . . . Traps Extracted . | . . . . . . . . . . . . . . . . . . . . . . . Installed . | . . . . . . . . . . . . . . . . . . . . . . . Triggered . | . . . . . . . . . . . . . . . . . . . . . . . Machines | -11 -10 -10 -9 -9 -9 -8 -8 -7 -6 -6 -6 -5 -5 -5 -4 -4 -4 -4 -4 -3 -2 -1 ---------- Run | Jun Mat Min Mat Min Exi Min Mat Fac Fac Was Fac Fac Was Fac Fac Ext Cet Arc Hub Res Res Acc Machines Disabled 15 | . . 1 . . . . 5 . . . . . . . . 3 . 6 . . . . Max in Single Turn 4 | . . 1 . . . . 4 . . . . . . . . . . 2 . . . . Garrison Access 7 | . . . . . . . 1 2 1 . 1 . . 2 . . . . . . . . Network Hub 1 | . . . . . . . . . . . . . . . . . . . 1 . . . Machines Repaired 1 | . . . . . . . . . . . . . . . . . . . 1 . . . Machines Sabotaged . | . . . . . . . . . . . . . . . . . . . . . . . Overloaded Fab Kills . | . . . . . . . . . . . . . . . . . . . . . . . Hacking | -11 -10 -10 -9 -9 -9 -8 -8 -7 -6 -6 -6 -5 -5 -5 -4 -4 -4 -4 -4 -3 -2 -1 --------- Run | Jun Mat Min Mat Min Exi Min Mat Fac Fac Was Fac Fac Was Fac Fac Ext Cet Arc Hub Res Res Acc Machines Accessed 92 | . 3 . 7 . 1 . 13 13 7 . 5 2 . 10 5 11 2 . 5 4 2 2 Terminals 63 | . 3 . 5 . . . 11 9 2 . 2 1 . 3 3 11 2 . 5 3 2 1 Fabricators 4 | . . . . . . . . 1 1 . . . . . 1 . . . . 1 . . Repair Stations 9 | . . . 1 . . . . 1 1 . 2 1 . 2 . . . . . . . 1 Recycling Units 3 | . . . . . . . . . . . . . . 3 . . . . . . . . Scanalyzers 4 | . . . 1 . . . 1 . 1 . . . . . 1 . . . . . . . Garrison Access 8 | . . . . . . . 1 2 2 . 1 . . 2 . . . . . . . . Total Hacks 226 | . 7 . 24 . 1 . 27 27 18 . 17 2 . 33 14 23 7 . 8 11 3 4 Successful 129 | . 6 . 18 . 1 . 18 12 6 . 8 1 . 24 8 9 2 . 5 7 3 1 Failed 95 | . . . 5 . . . 9 15 12 . 9 1 . 9 6 14 5 . 3 4 . 3 Catastrophic 20 | . . . . . . . 3 1 3 . 3 1 . 2 3 3 . . 1 . . . Database Lockouts 2 | . 1 . 1 . . . . . . . . . . . . . . . . . . . Manual 118 | . 8 . 14 . 1 . 19 22 5 . 6 1 . 9 7 4 1 . 10 8 3 . Terminals 148 | . 7 . 14 . . . 24 21 5 . 5 1 . 12 8 23 7 . 8 9 3 1 Fabricators 10 | . . . . . . . . 2 3 . . . . . 3 . . . . 2 . . Repair Stations 34 | . . . 2 . . . . 1 4 . 11 1 . 12 . . . . . . . 3 Recycling Units 7 | . . . . . . . . . . . . . . 7 . . . . . . . . Scanalyzers 15 | . . . 8 . . . 2 . 2 . . . . . 3 . . . . . . . Garrison Access 11 | . . . . . . . 1 3 4 . 1 . . 2 . . . . . . . . Terminal Hacks 66 | . 5 . 8 . 1 . 13 6 . . . . . 7 3 9 2 . 4 5 2 1 Record 5 | . 1 . 1 . . . 1 . . . . . . . . . 2 . . . . . Part Schematic 1 | . . . . . . . . . . . . . . 1 . . . . . . . . Robot Analysis 4 | . 1 . 2 . . . 1 . . . . . . . . . . . . . . . Open Door 8 | . . . . . . . . . . . . . . . . 7 . . . . . 1 Open DSF 1 | . . . . . . . . . . . . . . . . . . . . 1 . . Level Access Points 5 | . . . . . . . . 1 . . . . . 1 . . . . 1 1 1 . Branch Access Points 3 | . 1 . . . . . 1 . . . . . . 1 . . . . . . . . Emergency Access Points 1 | . . . . . . . . . . . . . . 1 . . . . . . . . Terminal Index 7 | . 1 . . . . . 1 1 . . . . . 1 1 . . . . 1 1 . Recycling Unit Index 1 | . . . . . . . . . . . . . . . 1 . . . . . . . Scanalyzer Index 1 | . . . . . . . 1 . . . . . . . . . . . . . . . Alert Level 12 | . 1 . 2 . . . 4 1 . . . . . 1 1 1 . . . 1 . . Unreport Threat 5 | . . . 2 . . . 1 . . . . . . . . 1 . . . 1 . . Maintenance Status 1 | . . . . . . . . 1 . . . . . . . . . . . . . . Patrol Status 1 | . . . . . . . . 1 . . . . . . . . . . . . . . Recall Investigation 1 | . . . . . . . . 1 . . . . . . . . . . . . . . Recall Reinforcements 1 | . . . . . . . 1 . . . . . . . . . . . . . . . Hauler Manifests 2 | . . . 1 . . . 1 . . . . . . . . . . . . . . . Zone Layout 5 | . . . . . . . 1 . . . . . . 1 . . . . 3 . . . Derelict Proto ID Bank 1 | . . . . . 1 . . . . . . . . . . . . . . . . . Fabricator Hacks 7 | . . . . . . . . 2 1 . . . . . 2 . . . . 2 . . Load Schematic 4 | . . . . . . . . 1 1 . . . . . 1 . . . . 1 . . Build 3 | . . . . . . . . 1 . . . . . . 1 . . . . 1 . . Repair Station Hacks 20 | . . . 2 . . . . . 2 . 7 1 . 8 . . . . . . . . Scan Component 10 | . . . 1 . . . . . 1 . 4 . . 4 . . . . . . . . Repair 8 | . . . 1 . . . . . 1 . 3 . . 3 . . . . . . . . Refit 2 | . . . . . . . . . . . . 1 . 1 . . . . . . . . Recycling Unit Hacks 6 | . . . . . . . . . . . . . . 6 . . . . . . . . Process 1 | . . . . . . . . . . . . . . 1 . . . . . . . . Report Inventory 2 | . . . . . . . . . . . . . . 2 . . . . . . . . Retrieve Matter 3 | . . . . . . . . . . . . . . 3 . . . . . . . . Scanalyzer 15 | . . . 8 . . . 2 . 2 . . . . . 3 . . . . . . . Insert Component 7 | . . . 4 . . . 1 . 1 . . . . . 1 . . . . . . . Analyze 8 | . . . 4 . . . 1 . 1 . . . . . 2 . . . . . . . Garrison Access Hacks 7 | . . . . . . . 1 2 1 . 1 . . 2 . . . . . . . . Seal Access 7 | . . . . . . . 1 2 1 . 1 . . 2 . . . . . . . . Unauthorized Hacks 8 | . 1 . . . . . 2 2 . . . . . 1 . . . . 1 . 1 . Terminals 8 | . 1 . . . . . 2 2 . . . . . 1 . . . . 1 . 1 . Track 1 | . . . . . . . 1 . . . . . . . . . . . . . . . Assimilate 2 | . . . . . . . . 1 . . . . . 1 . . . . . . . . Operators 4 | . 1 . . . . . 1 1 . . . . . . . . . . . . 1 . Sabotage 1 | . . . . . . . . . . . . . . . . . . . 1 . . . Fabricators . | . . . . . . . . . . . . . . . . . . . . . . . Repair Stations . | . . . . . . . . . . . . . . . . . . . . . . . Recycling Units . | . . . . . . . . . . . . . . . . . . . . . . . Scanalyzers . | . . . . . . . . . . . . . . . . . . . . . . . Garrison Access . | . . . . . . . . . . . . . . . . . . . . . . . Data Cores Recovered 2 | . . . 1 . . . . . . . . . . . . 1 . . . . . . Used . | . . . . . . . . . . . . . . . . . . . . . . . Hacking Detections 66 | . 3 . 5 . . . 9 10 7 . 2 1 . 5 5 8 3 . 2 3 1 2 Full Trace Events 14 | . 1 . 1 . . . 2 2 1 . 2 . . . 2 . . . 1 1 . 1 Feedback Events . | . . . . . . . . . . . . . . . . . . . . . . . Feedback Blocked . | . . . . . . . . . . . . . . . . . . . . . . . Robot Schematics Acquired . | . . . . . . . . . . . . . . . . . . . . . . . Robots Built . | . . . . . . . . . . . . . . . . . . . . . . . Authchips . | . . . . . . . . . . . . . . . . . . . . . . . Time . | . . . . . . . . . . . . . . . . . . . . . . . Total Robot Build Rating . | . . . . . . . . . . . . . . . . . . . . . . . Part Schematics Acquired 8 | . . . 4 . . . 1 . 1 . . . . 1 1 . . . . . . . Parts Built 2 | . . . . . . . . 1 . . . . . . . . . . . 1 . . Authchips . | . . . . . . . . . . . . . . . . . . . . . . . Time 176 | . . . . . . . . 73 . . . . . . 36 . . . . 67 . . Total Part Build Rating 7 | . . . . . . . . 3 . . . . . . . . . . . 4 . . Parts Repaired 8 | . . . 1 . . . . . 1 . 3 . . 3 . . . . . . . . Time 296 | . . . 38 . . . . . 19 . 150 . . 89 . . . . . . . . Parts Recycled . | . . . . . . . . . . . . . . . . . . . . . . . Recycled Matter 15 | . . . . . . . . . . . . . . 15 . . . . . . . . Retrieved Matter 15 | . . . . . . . . . . . . . . 15 . . . . . . . . Retrieved Components . | . . . . . . . . . . . . . . . . . . . . . . . Parts Scanalyzed 7 | . . . 4 . . . 1 . 1 . . . . . 1 . . . . . . . Part Schematics Acquired 7 | . . . 4 . . . 1 . 1 . . . . . 1 . . . . . . . Parts Damaged 2 | . . . . . . . . . 1 . . . . . 1 . . . . . . . Bothacking | -11 -10 -10 -9 -9 -9 -8 -8 -7 -6 -6 -6 -5 -5 -5 -4 -4 -4 -4 -4 -3 -2 -1 ------------ Run | Jun Mat Min Mat Min Exi Min Mat Fac Fac Was Fac Fac Was Fac Fac Ext Cet Arc Hub Res Res Acc Used RIF Installer . | . . . . . . . . . . . . . . . . . . . . . . . Robots Hacked . | . . . . . . . . . . . . . . . . . . . . . . . Non-combat . | . . . . . . . . . . . . . . . . . . . . . . . Combat . | . . . . . . . . . . . . . . . . . . . . . . . Robot Hacks Applied . | . . . . . . . . . . . . . . . . . . . . . . . Relay Couplers Released . | . . . . . . . . . . . . . . . . . . . . . . . Fabnet Peak Effective % . | . . . . . . . . . . . . . . . . . . . . . . . Robots Rewired 20 | . . . . . . . . . . . . . . . . 20 . . . . . . Allies Hacked . | . . . . . . . . . . . . . . . . . . . . . . . Hacks Repelled . | . . . . . . . . . . . . . . . . . . . . . . . Allies | -11 -10 -10 -9 -9 -9 -8 -8 -7 -6 -6 -6 -5 -5 -5 -4 -4 -4 -4 -4 -3 -2 -1 -------- Run | Jun Mat Min Mat Min Exi Min Mat Fac Fac Was Fac Fac Was Fac Fac Ext Cet Arc Hub Res Res Acc Total Allies 45 | . . . . 5 . . . . . . . . . 1 . 32 6 . . 1 . . Largest Group 19 | . . . . 5 5 3 . . . . . . . 1 . 19 14 13 . 1 . . Highest-Rated Group 910 | . . . . 83 83 40 . . . . . . . 26 . 910 761 759 . 137 . . Highest-Rated Ally 159 | . . . . 31 31 16 . . . . . . . 26 . 159 125 96 . 137 . . Total Orders 3 | . . . . . . . . . . . . . . . . 1 . 2 . . . . STAY 2 | . . . . . . . . . . . . . . . . . . 2 . . . . GUARD 1 | . . . . . . . . . . . . . . . . 1 . . . . . . Ally Attacks 321 | . . . . . . 11 . . . . . . . . . 191 61 50 . 8 . . Total Damage 10738 | . . . . . . 45 . . . . . . . . . 7080 1287 1910 . 416 . . Kills 58 | . . . . . . . . . . . . . . . . 41 8 8 . 1 . . Allies Corrupted . | . . . . . . . . . . . . . . . . . . . . . . . Allies Melted 2 | . . . . . . . . . . . . . . . . 2 . . . . . . Field Lobotomies 4 | . . . . . . . . . . . . . . . . 2 1 . . 1 . . Intel | -11 -10 -10 -9 -9 -9 -8 -8 -7 -6 -6 -6 -5 -5 -5 -4 -4 -4 -4 -4 -3 -2 -1 ------- Run | Jun Mat Min Mat Min Exi Min Mat Fac Fac Was Fac Fac Was Fac Fac Ext Cet Arc Hub Res Res Acc Robot Analysis Total 4 | . 1 . 2 . . . 1 . . . . . . . . . . . . . . . Derelict Logs Recovered 1 | . . . . 1 . . . . . . . . . . . . . . . . . . Drone Launches . | . . . . . . . . . . . . . . . . . . . . . . . Drone Recoveries . | . . . . . . . . . . . . . . . . . . . . . . . Exploration | -11 -10 -10 -9 -9 -9 -8 -8 -7 -6 -6 -6 -5 -5 -5 -4 -4 -4 -4 -4 -3 -2 -1 ------------- Run | Jun Mat Min Mat Min Exi Min Mat Fac Fac Was Fac Fac Was Fac Fac Ext Cet Arc Hub Res Res Acc Turns Passed 13973 | 69 741 223 2205 708 391 880 2617 663 413 36 990 235 30 476 336 773 302 700 74 395 138 578 Spaces Moved 14040 | 41 373 118 1016 403 230 432 1321 1468 1107 116 926 305 129 931 564 1009 260 590 273 938 380 1110 Core 49 | 13 . . . . . . . . . . . . . . . . . . . . . 36 Treads 3927 | 28 373 118 1016 403 230 432 1321 6 . . . . . . . . . . . . . . Legs . | . . . . . . . . . . . . . . . . . . . . . . . Wheels . | . . . . . . . . . . . . . . . . . . . . . . . Hover . | . . . . . . . . . . . . . . . . . . . . . . . Flight 10064 | . . . . . . . . 1462 1107 116 926 305 129 931 564 1009 260 590 273 938 380 1074 Fastest Speed 20 | 50 160 160 160 170 170 170 160 23 23 23 23 20 20 20 20 20 21 21 21 21 21 30 Average Speed 63 | 136 160 164 169 170 170 170 165 23 23 23 23 20 20 20 20 25 22 21 21 23 26 32 Slowest Speed 240 | 200 160 240 240 170 170 170 170 163 96 23 23 23 20 20 20 91 93 21 21 100 30 100 Overloaded Moves . | . . . . . . . . . . . . . . . . . . . . . . . Propulsion Burnouts . | . . . . . . . . . . . . . . . . . . . . . . . Robots Hopped 63 | . . . . . . . . 4 4 . 2 . . 5 . 4 . 1 1 21 2 19 Cave-ins Triggered 2 | . . . . . . . . . . . 1 . . . . . . . . 1 . . Exploration Rate (%) 49 | 4 58 37 83 85 63 73 73 42 23 81 27 8 82 32 15 89 67 97 34 28 18 19 Regions Visited 22 Branch Regions 8 Pre-discovered Areas 1 | . . . . 1 . . . . . . . . . . . . . . . . . . Known Exits Taken 11 | . 1 . . . . . . 1 . . 1 . . 1 1 1 1 1 1 1 1 . Unknown Exits Taken 7 | 1 . 1 1 1 1 1 1 . . . . . . . . . . . . . . . Scrap Searched 1 | . . . . 1 . . . . . . . . . . . . . . . . . . Spaces Dug 71 | . . . . . . . 7 14 13 . 11 9 . 8 3 . . . . 6 . . Terrain Destroyed 264 | . . . . . . . 49 14 13 . 11 9 . 8 3 47 72 10 . 24 . 4 Melee 71 | . . . . . . . 7 14 13 . 11 9 . 8 3 . . . . 6 . . Projectile 14 | . . . . . . . . . . . . . . . . . . 10 . . . 4 AOE 179 | . . . . . . . 42 . . . . . . . . 47 72 . . 18 . . Terrain Rammed . | . . . . . . . . . . . . . . . . . . . . . . . Walls Destroyed . | . . . . . . . . . . . . . . . . . . . . . . . Machines Disabled . | . . . . . . . . . . . . . . . . . . . . . . . Actions | -11 -10 -10 -9 -9 -9 -8 -8 -7 -6 -6 -6 -5 -5 -5 -4 -4 -4 -4 -4 -3 -2 -1 --------- Run | Jun Mat Min Mat Min Exi Min Mat Fac Fac Was Fac Fac Was Fac Fac Ext Cet Arc Hub Res Res Acc Total 18063 | 54 444 130 1293 425 231 526 1554 1712 1209 125 1668 460 132 1187 780 1497 492 1090 287 1073 416 1278 Wait 3046 | . 1 4 95 19 . 68 62 164 63 7 714 145 3 225 202 335 217 410 15 126 33 138 Move 13898 | 40 372 117 1015 402 229 431 1320 1459 1099 115 921 305 128 920 563 999 259 587 270 900 375 1072 Hop 57 | . . . . . . . . 4 4 . 2 . . 5 . 4 . 1 1 16 2 18 Pick Up 127 | 8 20 . 19 1 1 . 14 12 2 . 5 . 1 9 4 6 1 9 . 4 2 9 Fast Attach 37 | . . . 8 . . . 7 1 6 1 3 . . 3 . 3 . 2 . 3 . . Attach 77 | 6 2 . 5 . . . 8 11 . . 2 1 . 2 2 8 4 5 . 8 2 11 Detach 10 | . . . . . . . . . . . . . . . . 4 2 1 . 2 . 1 Swap 44 | . 6 . 15 . . . 5 3 1 . 1 . . 3 4 3 1 1 1 . . . Drop 95 | . 5 . 25 1 1 . 16 11 4 2 3 . . 6 2 9 . 5 . 3 2 . Fire 448 | . 38 9 106 . . 25 103 19 3 . . . . . . 49 6 63 . 5 . 22 Melee 126 | . . . . . . . 10 28 27 . 17 9 . 14 3 4 2 6 . 6 . . Ram 7 | . . . . . . . . . . . . . . . . . . . . . . 7 Kick . | . . . . . . . . . . . . . . . . . . . . . . . Crush 17 | . . . 4 2 . 2 9 . . . . . . . . . . . . . . . Escape Stasis 73 | . . . . . . . . . . . . . . . . 73 . . . . . . Rewire . | . . . . . . . . . . . . . . . . . . . . . . . Trap 1 | . . . 1 . . . . . . . . . . . . . . . . . . . Miscellaneous . | . . . . . . . . . . . . . . . . . . . . . . . Route ------- -11/Junkyard -10/Materials (discovered 3 exits: *Mat / *Min / [*Sub]) -10/Mines -9/Materials (discovered 5 exits: *Mat x3 / [*Min x2]) -9/Mines (discovered 4 exits: *Mat x2 / *Exi / [*Zio]) -9/Exiles -8/Mines (discovered 2 exits: *Mat x2) -8/Materials (discovered 4 exits: *Fac x2 / *Sto x2) -7/Factory (discovered 4 exits: *Fac x4) -6/Factory -6/Waste -6/Factory -5/Factory -5/Waste -5/Factory (discovered 6 exits: *Fac x4 / Upp x2) -4/Factory -4/Extension (discovered 2 exits: *Res / *Cet) -4/Cetus -4/Archives (discovered 3 exits: *Res / *Hub x2) -4/Hub_04(d) (discovered 4 exits: *Res x4) -3/Research (discovered 3 exits: *Res x3) -2/Research (discovered 3 exits: *Acc x3) -1/Access To Epsilon Eridani History --------- Turn | Location | Event 2 | -11/Junkyard | Discovered new exit (range 16) 70 | -11/Junkyard | Entered Materials 85 | -10/Materials | Central database locked down 123 | -10/Materials | Identified exit to Mines 319 | -10/Materials | Build established: Mutant 393 | -10/Materials | Discovered new exit (range 12) 505 | -10/Materials | Discovered new exit (range 7) 811 | -10/Materials | Entered Mines 1006 | -10/Mines | Discovered new exit (range 8) 1034 | -10/Mines | Entered Materials 1034 | -9/Materials | Evolved 2 slots: Propulsion x1, Utility x1 1190 | -9/Materials | Central database locked down 1486 | -9/Materials | Discovered new exit (range 3) 1643 | -9/Materials | Lost 3 parts (1n1u1w) 1914 | -9/Materials | Build established: Scavenger-Mutant 1958 | -9/Materials | Discovered new exit (range 10) 2069 | -9/Materials | Discovered new exit (range 16) 2218 | -9/Materials | Discovered new exit (range 16) 2385 | -9/Materials | Build established: Mutant 2634 | -9/Materials | First assault squad dispatched 2740 | -9/Materials | Discovered new exit (range 16) 2799 | -9/Materials | Core integrity fell below 50% 3146 | -9/Materials | Repaired Flak Cannon 3239 | -9/Materials | Entered Mines 3260 | -9/Mines | A weapon hastily lodged in a ceiling crevice suddenly fell to the ground 3432 | -9/Mines | Learned location of Zion (-7) 3532 | -9/Mines | Assisted by bots powering up and referring to "LRC-V3" 3626 | -9/Mines | Discovered new exit (range 9) 3792 | -9/Mines | A Derelict revealed a hidden shortcut to a safe place 3876 | -9/Mines | Discovered new exit (range 12) 3924 | -9/Mines | Deemed a non-threat by the Exiles lab entrance 3924 | -9/Mines | Discovered new exit (range 5) 3947 | -9/Mines | Entered Exiles 3947 | -9/Exiles | Accompanied by 5 allies 3977 | -9/Exiles | Led the pair of lost Derelicts to a safe place 3995 | -9/Exiles | Met 8R-AWN 4022 | -9/Exiles | Met EX-HEX 4073 | -9/Exiles | Met EX-BIN 4094 | -9/Exiles | Aligned with FarCom system 4095 | -9/Exiles | Given EX-Vault access code 4138 | -9/Exiles | Opened EX-Vault 4150 | -9/Exiles | Found Field Lobotomy Kit 4194 | -9/Exiles | Warned to stay clear of 0b10 Research branches 4241 | -9/Exiles | Met EX-DEC 4318 | -9/Exiles | Discovered new exit (range 12) 4338 | -9/Exiles | Left Exiles lab with Field Lobotomy Kit 4338 | -9/Exiles | Entered Mines 4338 | -8/Mines | Accompanied by 3 allies 5199 | -8/Mines | Discovered new exit (range 16) 5206 | -8/Mines | Discovered new exit (range 8) 5218 | -8/Mines | Entered Materials 5218 | -8/Materials | Evolved 2 slots: Propulsion x1, Utility x1 5412 | -8/Materials | Discovered new exit (range 7) 5416 | -8/Materials | Discovered new exit (range 15) 5739 | -8/Materials | Discovered new exit (range 7) 6170 | -8/Materials | Identified exit to Storage 7297 | -8/Materials | Discovered new exit (range 16) 7835 | -8/Materials | Entered Factory 7835 | -7/Factory | Evolved 2 slots: Propulsion x1, Utility x1 8147 | -7/Factory | Build established: Hacker-Sprinter 8208 | -7/Factory | Discovered new exit (range 16) 8365 | -7/Factory | Fabricated Hacking Suite (x1) 8382 | -7/Factory | Identified exit to Factory 8498 | -7/Factory | Entered another Factory area 8498 | -6/Factory | Evolved 2 slots: Utility x2 8790 | -6/Factory | Repaired Lgt. Nuclear Core 8911 | -6/Factory | Manually triggered Chute Trap 8911 | -6/Factory | Sucked down chute 8911 | -6/Factory | Entered Waste 8924 | -6/Waste | Spotted C-40 Crusher 8926 | -6/Waste | EMP discharged 8932 | -6/Waste | Spotted C-40 Crusher 8934 | -6/Waste | Spotted C-40 Crusher 8936 | -6/Waste | Spotted C-40 Crusher 8940 | -6/Waste | Spotted C-40 Crusher 8940 | -6/Waste | Spotted C-40 Crusher 8943 | -6/Waste | Discovered new exit (range 14) 8947 | -6/Waste | Identified exit to Factory 8947 | -6/Waste | Entered Factory 9082 | -6/Factory | Repaired Imp. Light Cannon 9170 | -6/Factory | Repaired Broken Imp. Cesium-ion Thruster 9220 | -6/Factory | Repaired Imp. VTOL Module 9893 | -6/Factory | Crushed by falling debris 9893 | -6/Factory | System corruption reached 10% 9915 | -6/Factory | Discovered new exit (range 21) 9937 | -6/Factory | Identified exit to Factory 9937 | -6/Factory | Entered another Factory area 9937 | -5/Factory | Evolved 2 slots: Power x1, Propulsion x1 10172 | -5/Factory | Sucked down chute 10172 | -5/Factory | Entered Waste 10176 | -5/Waste | Spotted C-40 Crusher 10176 | -5/Waste | Spotted C-40 Crusher 10176 | -5/Waste | Spotted C-40 Crusher 10187 | -5/Waste | Spotted C-40 Crusher 10190 | -5/Waste | Spotted C-40 Crusher 10190 | -5/Waste | Spotted C-40 Crusher 10193 | -5/Waste | Discovered new exit (range 22) 10202 | -5/Waste | Identified exit to Factory 10202 | -5/Waste | Entered Factory 10256 | -5/Factory | Repaired Broken Adv. Phase Shifter 10279 | -5/Factory | Spotted B-75 Beast 10359 | -5/Factory | Identified exit to Factory 10522 | -5/Factory | Identified exit to Upper Caves 10621 | -5/Factory | Repaired Lgt. Nuclear Core 10640 | -5/Factory | Repaired Imp. Light Armor Plating 10678 | -5/Factory | Entered another Factory area 10678 | -4/Factory | Evolved 2 slots: Utility x2 10741 | -4/Factory | Discovered new exit (range 20) 10813 | -4/Factory | Spotted B-86 Titan 11014 | -4/Factory | Identified exit to Extension 11014 | -4/Factory | Entered Extension 11132 | -4/Extension | Spotted B-86 Titan 11139 | -4/Extension | Spotted B-86 Titan 11139 | -4/Extension | Assimilated B-86 Titan with FLK Orb 11148 | -4/Extension | Assimilated B-86 Titan with FLK Orb 11225 | -4/Extension | Rescued a captive Derelict 11236 | -4/Extension | Rescued a captive Derelict 11240 | -4/Extension | Rescued a captive Derelict 11241 | -4/Extension | Rescued a captive Derelict 11314 | -4/Extension | Rescued a captive Derelict 11453 | -4/Extension | Rescued A7 11508 | -4/Extension | Rescued a captive Derelict 11510 | -4/Extension | Rescued a captive Derelict 11514 | -4/Extension | First assault squad dispatched 11567 | -4/Extension | Found Prototype Protection 11567 | -4/Extension | Identified Med. Regenerative Plating 11665 | -4/Extension | Rescued a captive Derelict 11665 | -4/Extension | Rescued a captive Derelict 11674 | -4/Extension | Discovered new exit (range 10) 11674 | -4/Extension | Discovered new exit (range 6) 11786 | -4/Extension | Identified exit to Cetus 11787 | -4/Extension | Entered Cetus 11787 | -4/Cetus | Accompanied by 14 allies (A7) 11792 | -4/Cetus | Build established: Commander-Sprinter 11792 | -4/Cetus | Acquired a Cetus Manufacturing Module code from A7 11795 | -4/Cetus | Spotted Cetus Guard 11795 | -4/Cetus | Spotted Cetus Guard 11795 | -4/Cetus | Spotted Cetus Guard 11795 | -4/Cetus | Spotted Cetus Guard 11807 | -4/Cetus | Allies destroyed Cetus Guard 11816 | -4/Cetus | Extracted ID and sensor layout for unrecognized location from A7's data core 11823 | -4/Cetus | Allies destroyed Cetus Guard 11828 | -4/Cetus | Allies destroyed Cetus Guard 11832 | -4/Cetus | Allies destroyed Cetus Guard 11842 | -4/Cetus | Started Cetus Manufacturing Module 11851 | -4/Cetus | Lost 4 parts (1p1n2u) 11867 | -4/Cetus | Manufactured an Enhanced Grunt 11892 | -4/Cetus | Manufactured an Enhanced Grunt 11899 | -4/Cetus | Discovered new exit (range 22) 11917 | -4/Cetus | Manufactured an Enhanced Grunt 11942 | -4/Cetus | Manufactured an Enhanced Grunt 11967 | -4/Cetus | Manufactured an Enhanced Grunt 12043 | -4/Cetus | Assimilated C-30 ARC with FLK Orb 12051 | -4/Cetus | Identified exit to Archives 12089 | -4/Cetus | Entered Archives 12089 | -4/Archives | Accompanied by 13 allies 12181 | -4/Archives | Unable to access archive contents 12182 | -4/Archives | Discovered new exit (range 16) 12184 | -4/Archives | Unable to access archive contents 12184 | -4/Archives | Discovered new exit (range 14) 12206 | -4/Archives | Discovered new exit (range 18) 12657 | -4/Archives | Build established: Hacker-Sprinter 12728 | -4/Archives | Identified exit to Hub_04(d) 12760 | -4/Archives | Identified exit to Research 12789 | -4/Archives | Entered Hub_04(d) 12859 | -4/Hub_04(d) | Network Hub disabled 12862 | -4/Hub_04(d) | Spotted Lightning 12862 | -4/Hub_04(d) | Spotted Lightning 12862 | -4/Hub_04(d) | Spotted Lightning 12863 | -4/Hub_04(d) | Entered Research 12863 | -3/Research | Evolved 2 slots: Utility x2 12905 | -3/Research | Identified exit to DSF 12963 | -3/Research | Crushed by falling debris 12994 | -3/Research | Lost 3 parts (1n1u1w) 13012 | -3/Research | Fabricated Imp. Cesium-ion Thruster? 13135 | -3/Research | System corruption reached 10% 13145 | -3/Research | Assimilated H-71 Marshal with FLK Orb 13178 | -3/Research | Identified exit to Research 13233 | -3/Research | Spotted B-86 Titan 13258 | -3/Research | Entered another Research area 13258 | -2/Research | Evolved 2 slots: Propulsion x1, Utility x1 13309 | -2/Research | Build established: Wizard-Sprinter 13344 | -2/Research | Identified exit to Access 13396 | -2/Research | Entered Access 13396 | -1/Access | Evolved 2 slots: Propulsion x2 13425 | -1/Access | Lost 4 parts (3n1u) 13907 | -1/Access | Lost 15 parts (2p3n7u3w) 13937 | -1/Access | Spotted B-99 Colossus 13972 | -1/Access | Discovered new exit (range 6) 13974 | *** | Escaped! Last Messages --------------- 13958_ Penetrated by Slug. 13958_ Slug penetrates Wall. 13958_ Slug penetrates K-01 Serf. 13958_ K-01 Serf destroyed. 13958_ Slug penetrates Wall. 13958_ Penetrated by Slug. 13958_ K-01 Serf collects debris. 13958_ R-10 Processor collects Med. Matter Pod. 13962_ U-05 Engineer builds a Wall. 13963_ Slug penetrates Wall. 13963_ Penetrated by Slug. 13963_ Xenon Bombardment Thruster destroyed. 13963_ Slug penetrates Wall. 13963_ Penetrated by Slug. 13963_ K-01 Serf collects debris. 13970_ Connecting with Terminal... >>Open(Door) Sealed Barrier opened. 13972_ The Access Shell folds into the floor. 13972_ EXIT=FOUND Map ----- +----------------------------------------------------+ | ????????????????????#### +??????????????? | | ????????????????????# "" #??????????????? | | ????????????????????#""" #??????????????? | | ????????????????????#"R "" #??????????????? | | ????????????????????#""" ""R" #??????????????? | | ????????????????????#""" "" #??????????????? | | ????????????????????#### #??????????????? | | ??????????????????? #### #??????????????? | | ?????????????????? ## #??????????????? | | ????????????????? ??# *BB ############ ?? | | ??????????######/#####""BB ==! ? | | ??????????# !! ? | | ??????????# ! ? | | ??????????# ############ "" ############## ?? | | ??????????+ #??????????#""" """#????????????????? | | ??????????# #??????????#########????????????????? | | ??????????# #???????????????????????????????????? | | ??????????# #???????????????????????????????????? | | ??????????# #?????###???????????????????????????? | | ??????????# ####### ##########??????????????????? | | ??????????# p"""T""" "??????????????????? | | ??????????# """ """ "????BB????????????? | | ??????????# pp "????BB????????????? | | ??????????# t "??????????????????? | | ??????????# "" "??????????????????? | | ??????????# w @" "??????????????????? | | ??????????# "??????????????????? | | ??????????# "????BB????????????? | | ??????????# "????BB????????????? | | ??????????# "??????????????????? | | ??????????# ####### ##########??????????????????? | | ??????????# #?????###???????????????????????????? | | ??????????# #???????????????????????????????????? | | ??????????# ????????????????????????????????????? | | ??????????# ????????????????????????????????????? | | ??????????# ????????????????????????????????????? | | ??????????# ????????????????????????????????????? | | ??????????# ????????????????????????????????????? | | ??????????# ????????????????????????????????????? | | ??????????# ????????????????????????????????????? | | ??????????# ????????????????????????????????????? | | ??????????# ????????????????????????????????????? | | ??????????? ????????????????????????????????????? | | ??????????? ?????????????????????????????????????? | | ?????????????????????????????????????????????????? | | ?????????????????????????????????????????????????? | | ?????????????????????????????????????????????????? | | ?????????????????????????????????????????????????? | | ?????????????????????????????????????????????????? | | ?????????????????????????????????????????????????? | +----------------------------------------------------+ Best States ------------- Heat Dissipation 52 Energy Generation 31 Energy Capacity 360 Matter Stores 300 Matter Capacity 300 Sight Range 22 Terrain Scan Density 10 ECM Strength 1 Jamming Range 14 Armor Coverage 600 Resistance: EM 25 Propulsion Shielding 33 Phase Shifting 15 Evasion (%) 78 Recoil Reduction 4 Offensive Hacking 60 Defensive Hacking 24 Item Schematics ----------------- Hacking Suite | -9/Materials | Scanalyzed Lgt. Nuclear Core | -9/Materials | Scanalyzed Lgt. Armor Plating | -9/Materials | Scanalyzed ECM Suite | -9/Materials | Scanalyzed Imp. VTOL Module | -8/Materials | Scanalyzed Imp. Cesium-ion Thruster | -6/Factory | Scanalyzed Imp. Propulsion Shielding | -5/Factory | Hacked Stasis Canceller | -4/Factory | Scanalyzed Robot Schematics ------------------ None Fabricated ------------ Hacking Suite | x1 | -7/Factory Imp. Cesium-ion Thruster | x1 | -3/Research Alien Tech Used ----------------- None Achievements -------------- Cannon Specialist Prolific Hacker Challenges ------------ None Game ------ Seed DrainedMomentumReconstructor Manual? 0 Play Time 02:57:28 Cumulative 70.2 hours Start 2023.08.17 @ 16:28:11 End 2023.08.18 @ 21:47:28 Sessions 8 Manual Loads 0 Difficulty Rogue Special Mode None Game No. 62 Rogue 26 Adventurer 36 Explorer 0 Win Type 0 Total 7 Types 2/0/5/0/0/0/0/0/0 Lore% 44 Gallery% 64 Achievement% 55 Wizard Run 0 Options --------- ASCII 0 Keyboard 0 Movement Mouse Keybinds 0 Fullscreen 1 Font 18/SmallcapsGlow Map View 76x50 Tactical HUD 1 Map Filters NONE Filters NONE Steam 1 RUN: ea6aac8b-672a-479b-8720-be7b9a5899b0